[Event "XVII Orsha-2019 Open"]
[Site "Orsha"]
[Date "2019.01.18"]
[Round "2.18"]
[White "Sukalina, Alina"]
[Black "Silich, Yahor"]
[Result "1/2-1/2"]
[ECO "E90"]
[WhiteElo "1546"]
[BlackElo "2116"]
[PlyCount "99"]
[EventDate "2019.01.18"]
[EventType "swiss"]
[EventCountry "BLR"]
[TimeControl "5400+30"]

1. d4 Nf6 2. c4 d6 3. Nf3 g6 4. Nc3 Bg7 5. e4 O-O 6. h3 e5 7. Be3 Nbd7 8. d5 Nc5 9. Bd3 Nxd3+ 10. Qxd3 a5 11. Qd2 Nh5 12. g4 Nf4 13. O-O-O a4 14. Rdg1 a3 15. b3 c6 16. h4 cxd5 17. Nxd5 b5 18. cxb5 Nxd5 19. Qxd5 Be6 20. Qd3 d5 21. Ng5 Qc8+ 22. Kb1 dxe4 23. Qe2 Bd5 24. Rc1 Qb7 25. Nh3 Rfd8 26. h5 f6 27. hxg6 hxg6 28. b6 Rac8 29. Rhd1 Qf7 30. Qb5 Rxc1+ 31. Rxc1 Bf8 32. Rc7 Qe6 33. Ng1 Bd6 34. Ra7 Bb8 35. Rxa3 Bc6 36. Qe2 Kg7 37. Ra5 Rd3 38. Rc5 Bb7 39. Rc1 Qd7 40. Qb2 Ba6 41. Ne2 Qxg4 42. Nc3 Rd4 43. Qa3 Bd3+ 44. Ka1 Qe6 45. b7 Rd8 46. Na4 Bd6 47. Bc5 Bb8 48. Be3 Bd6 49. Bc5 Bb8 50. Be3 1/2-1/2

[Event "XVII Orsha-2019 Open"]
[Site "Orsha"]
[Date "2019.01.18"]
[Round "2.19"]
[White "Budnikov, Sergei"]
[Black "Dolgopyatov, Andrey"]
[Result "1/2-1/2"]
[ECO "A07"]
[WhiteElo "2152"]
[BlackElo "1393"]
[PlyCount "60"]
[EventDate "2019.01.18"]
[EventType "swiss"]
[EventCountry "BLR"]
[TimeControl "5400+30"]

1. Nf3 d5 2. g3 Nf6 3. Bg2 c6 4. O-O Bg4 5. d3 e6 6. Nbd2 Bd6 7. b3 O-O 8. Bb2 c5 9. e4 dxe4 10. dxe4 Be7 11. h3 Bh5 12. Qe1 Nc6 13. g4 Bg6 14. Nh4 Bxe4 15. Bxe4 Nxe4 16. Nxe4 Bxh4 17. Nxc5 Qe7 18. Nd3 Rfd8 19. Qe4 Rac8 20. Rad1 Qc7 21. Nf4 Qb6 22. Rxd8+ Rxd8 23. Nh5 Rd2 24. Bxg7 Rxf2 25. Rxf2 Qxf2+ 26. Kh1 Be7 27. Bh6 Bd6 28. Bf4 Qf1+ 29. Kh2 Qf2+ 30. Kh1 Qf1+ 1/2-1/2

[Event "XVII Orsha-2019 Open"]
[Site "Orsha"]
[Date "2019.01.18"]
[Round "2.20"]
[White "Platnitski, Siarhei"]
[Black "Gabdrakipov, Ilshat"]
[Result "0-1"]
[ECO "A13"]
[WhiteElo "1383"]
[BlackElo "2098"]
[PlyCount "108"]
[EventDate "2019.01.18"]
[EventType "swiss"]
[EventCountry "BLR"]
[TimeControl "5400+30"]

1. c4 e6 2. g3 d5 3. Bg2 Nf6 4. Nf3 Bd6 5. O-O O-O 6. d3 b6 7. Nc3 Bb7 8. b3 Qe7 9. a3 Rd8 10. Qc2 Nbd7 11. Bb2 Rac8 12. Rfd1 dxc4 13. dxc4 Nc5 14. Ng5 Bxg2 15. Kxg2 h6 16. Nge4 Ncxe4 17. Nxe4 Nxe4 18. Qxe4 a5 19. a4 f5 20. Qf3 Rf8 21. e4 Rcd8 22. e5 Bc5 23. Rxd8 Rxd8 24. Rd1 g5 25. Rd3 Qe8 26. Qd1 Qc6+ 27. Kg1 Rxd3 28. Qxd3 Kf7 29. Qd8 Be7 30. Qd3 g4 31. Bc1 Kg6 32. Bf4 h5 33. Qe3 h4 34. gxh4 Bxh4 35. Bg3 Be7 36. Bf4 Qe4 37. Qxe4 fxe4 38. Kg2 Kf5 39. Bg3 Bc5 40. h4 gxh3+ 41. Kxh3 e3 42. fxe3 Bxe3 43. Be1 Kxe5 44. b4 axb4 45. Bxb4 Kd4 46. a5 bxa5 47. Bxa5 c5 48. Kg4 Kxc4 49. Kf3 Kd3 50. Bb6 e5 51. Ba7 e4+ 52. Kg4 c4 53. Bb8 c3 54. Be5 c2 0-1

[Event "XVII Orsha-2019 Open"]
[Site "Orsha"]
[Date "2019.01.18"]
[Round "2.21"]
[White "Parshin, Maxim"]
[Black "Poghosyan, Sarmen"]
[Result "1-0"]
[ECO "D03"]
[WhiteElo "1956"]
[BlackElo "1361"]
[PlyCount "43"]
[EventDate "2019.01.18"]
[EventType "swiss"]
[EventCountry "BLR"]
[TimeControl "5400+30"]

1. d4 d5 2. Nf3 Nf6 3. Bg5 e6 4. Nbd2 c5 5. e3 Nbd7 6. c3 Be7 7. Bd3 O-O 8. Ne5 Nxe5 9. dxe5 Nd7 10. Bf4 f5 11. h4 b6 12. g4 Bb7 13. gxf5 exf5 14. Qf3 Qc8 15. Qg3 Kh8 16. O-O-O Nb8 17. Rdg1 Rg8 18. Nf3 Nc6 19. Ng5 Nd8 20. Nxh7 c4 21. Qg6 Qe6 22. Nf6 1-0

[Event "XVII Orsha-2019 Open"]
[Site "Orsha"]
[Date "2019.01.18"]
[Round "2.22"]
[White "Nikolaev, Dmitry"]
[Black "Bogacheva, Anna"]
[Result "0-1"]
[ECO "A84"]
[WhiteElo "1634"]
[BlackElo "1955"]
[PlyCount "80"]
[EventDate "2019.01.18"]
[EventType "swiss"]
[EventCountry "BLR"]
[TimeControl "5400+30"]

1. d4 f5 2. Nf3 Nf6 3. c4 e6 4. Bf4 Bb4+ 5. Nc3 Bxc3+ 6. bxc3 Ne4 7. d5 d6 8. dxe6 Bxe6 9. e3 Qf6 10. Qd4 Nxc3 11. Qxf6 gxf6 12. Nd4 Kf7 13. Nxe6 Kxe6 14. c5 Nd7 15. cxd6 cxd6 16. Rc1 Rhc8 17. Rc2 Ne5 18. f3 Nd5 19. Kd2 Rxc2+ 20. Kxc2 Rc8+ 21. Kd2 Nxf4 22. exf4 Nc4+ 23. Kd3 d5 24. g4 fxg4 25. fxg4 Kd6 26. h4 Re8 27. Bg2 Kc5 28. Rh3 b5 29. g5 b4 30. f5 Ne5+ 31. Kd2 Kd4 32. Rg3 Nc4+ 33. Kd1 fxg5 34. hxg5 Re3 35. Rg4+ Kc3 36. Rxc4+ dxc4 37. f6 b3 38. axb3 cxb3 39. Bd5 Rd3+ 40. Kc1 b2+ 0-1

[Event "XVII Orsha-2019 Open"]
[Site "Orsha"]
[Date "2019.01.18"]
[Round "2.23"]
[White "Stashis, Anna"]
[Black "Viikmaa, Karmen"]
[Result "1/2-1/2"]
[ECO "B22"]
[WhiteElo "1931"]
[BlackElo "1706"]
[PlyCount "121"]
[EventDate "2019.01.18"]
[EventType "swiss"]
[EventCountry "BLR"]
[TimeControl "5400+30"]

1. e4 c5 2. c3 d5 3. exd5 Qxd5 4. Nf3 Nf6 5. d4 Nc6 6. Be3 Ng4 7. Be2 Nxe3 8. fxe3 g6 9. Nbd2 cxd4 10. exd4 Bh6 11. O-O O-O 12. c4 Qd8 13. d5 Nd4 14. Nxd4 Be3+ 15. Kh1 Bxd4 16. Qc2 Qd6 17. Bf3 Bf5 18. Be4 Bg4 19. Nb3 Be5 20. c5 Qc7 21. h3 Bd7 22. Rfd1 Rac8 23. Qf2 Ba4 24. Rac1 Bxb3 25. axb3 Bg3 26. Qe2 Bf4 27. Rc2 Qe5 28. b4 Qg5 29. Qf3 Bb8 30. Re2 Rfd8 31. Rf1 f5 32. Bc2 Qh4 33. d6 exd6 34. Bb3+ Kg7 35. Qc3+ Kh6 36. Be6 Rc7 37. Qd2+ Kg7 38. cxd6 Rc6 39. d7 Qg3 40. Qd4+ Kh6 41. Qe3+ Qxe3 42. Rxe3 Rd6 43. g4 f4 44. Re2 Rd3 45. Kg2 Rg3+ 46. Kf2 Bc7 47. Ke1 Bd6 48. Kd1 Kg5 49. Rc2 Re3 50. Re1 Rxe1+ 51. Kxe1 Bxb4+ 52. Kf2 Kf6 53. Rc8 Ba5 54. Rxd8 Bxd8 55. Bd5 Ke7 56. Bxb7 Kxd7 57. Kf3 Bc7 58. h4 Ke7 59. Bd5 h6 60. b3 Kf6 61. Bc4 1/2-1/2

[Event "XVII Orsha-2019 Open"]
[Site "Orsha"]
[Date "2019.01.18"]
[Round "2.24"]
[White "Tihonov, Jurij"]
[Black "Petrosyan, Sahak"]
[Result "1-0"]
[ECO "D37"]
[WhiteElo "2399"]
[BlackElo "1835"]
[PlyCount "57"]
[EventDate "2019.01.18"]
[EventType "swiss"]
[EventCountry "BLR"]
[TimeControl "5400+30"]

1. Nf3 d5 2. d4 e6 3. c4 Nf6 4. Nc3 Be7 5. Bf4 O-O 6. e3 b6 7. Qc2 c5 8. Rd1 Bb7 9. Be2 cxd4 10. Nxd4 Nbd7 11. cxd5 e5 12. Nc6 Bxc6 13. dxc6 exf4 14. exf4 Qc7 15. cxd7 Qxf4 16. O-O Qc7 17. Qa4 Rad8 18. Nd5 Nxd5 19. Rxd5 Bd6 20. Bb5 Bxh2+ 21. Kh1 Bd6 22. Qd4 Bc5 23. Qd2 Be7 24. Rc1 Qb7 25. Qd3 Bf6 26. Ba6 Qb8 27. g3 g6 28. Rc6 Bxb2 29. Rc8 1-0

[Event "XVII Orsha-2019 Open"]
[Site "Orsha"]
[Date "2019.01.18"]
[Round "2.25"]
[White "Egorenkov, Igor"]
[Black "Grigoryan, Aram"]
[Result "0-1"]
[ECO "A77"]
[WhiteElo "2213"]
[BlackElo "1786"]
[PlyCount "124"]
[EventDate "2019.01.18"]
[EventType "swiss"]
[EventCountry "BLR"]
[TimeControl "5400+30"]

1. d4 Nf6 2. Nf3 c5 3. d5 e6 4. c4 exd5 5. cxd5 d6 6. Nc3 g6 7. Nd2 Nbd7 8. e4 Bg7 9. Be2 O-O 10. O-O Re8 11. f3 a6 12. a4 Rb8 13. Nc4 Nb6 14. Ne3 Bd7 15. g4 h5 16. h3 Nc8 17. a5 Na7 18. Nc4 Bb5 19. Bf4 Bxc4 20. Bxc4 Qe7 21. Qe1 hxg4 22. hxg4 Nd7 23. Bg3 g5 24. Ra2 Ne5 25. Qe2 Ng6 26. Nd1 Be5 27. Bxe5 Qxe5 28. Ne3 Nf4 29. Qh2 Qd4 30. Ra3 Nc8 31. Rd1 Qf6 32. Nf5 Ne7 33. e5 dxe5 34. Ng3 Rbd8 35. Ne4 Qg6 36. d6 Kg7 37. Rd2 Nc6 38. d7 Rh8 39. Rd6 Rxh2 40. Rxg6+ Kxg6 41. Kxh2 Rxd7 42. Rb3 Nxa5 43. Rb6+ Kg7 44. Ba2 Nd5 45. Bxd5 Rxd5 46. Nxg5 Rd3 47. Ne4 Rb3 48. Rf6 Rxb2+ 49. Kh3 Nc4 50. g5 b6 51. Ng3 Ne3 52. Nh5+ Kg8 53. Rd6 c4 54. Rd7 c3 55. g6 Rd2 56. Rxf7 Rd6 57. Rc7 Rxg6 58. Rxc3 Nd5 59. Rc4 b5 60. Re4 Rh6 61. Rg4+ Kf8 62. Rh4 Rxh5 0-1

[Event "XVII Orsha-2019 Open"]
[Site "Orsha"]
[Date "2019.01.18"]
[Round "2.26"]
[White "Klachkou, Platon"]
[Black "Paniagua Chnelik, Sebastian"]
[Result "0-1"]
[ECO "D43"]
[WhiteElo "1771"]
[BlackElo "2188"]
[PlyCount "66"]
[EventDate "2019.01.18"]
[EventType "swiss"]
[EventCountry "BLR"]
[TimeControl "5400+30"]

1. d4 d5 2. c4 e6 3. Nc3 c6 4. Nf3 Nf6 5. Bg5 h6 6. Bh4 g5 7. Bg3 dxc4 8. a4 Bb4 9. e3 b5 10. axb5 cxb5 11. Nd2 Bd7 12. Qc2 Nd5 13. Be2 Bc6 14. h4 gxh4 15. Bxh4 Be7 16. Bxe7 Qxe7 17. Nxd5 exd5 18. Bf3 Bb7 19. Rh5 Nc6 20. Bxd5 Nb4 21. Qb1 Bxd5 22. Qf5 Qe6 23. Qxe6+ fxe6 24. Ke2 a6 25. e4 Bb7 26. Re5 Kd7 27. Rd1 Nd3 28. Nf3 Nxb2 29. d5 Nxd1 30. dxe6+ Kd6 31. Kxd1 Rae8 32. Rh5 Rxe6 33. e5+ Kc5 0-1

[Event "XVII Orsha-2019 Open"]
[Site "Orsha"]
[Date "2019.01.18"]
[Round "2.27"]
[White "Davidov, Alexey"]
[Black "Pogosian, Georgy"]
[Result "0-1"]
[ECO "C06"]
[WhiteElo "1688"]
[BlackElo "2090"]
[PlyCount "104"]
[EventDate "2019.01.18"]
[EventType "swiss"]
[EventCountry "BLR"]
[TimeControl "5400+30"]

1. e4 e6 2. d4 d5 3. Nd2 Nf6 4. Bd3 c5 5. c3 Nc6 6. e5 Nd7 7. Ne2 cxd4 8. cxd4 f6 9. exf6 Qxf6 10. Nf3 h6 11. O-O Bd6 12. Ng3 O-O 13. Bb1 Rf7 14. Nh5 Qd8 15. Qd3 Nf8 16. Re1 Bd7 17. Ne5 Bxe5 18. dxe5 Rf5 19. Qh3 Qa5 20. Rd1 Rxe5 21. Bd2 Qb6 22. Nxg7 Kxg7 23. Qxh6+ Kf7 24. Bf4 Be8 25. Bxe5 Nxe5 26. Qh5+ Neg6 27. Bxg6+ Nxg6 28. Qh7+ Kf6 29. Rd3 Ke5 30. Rb3 Qc6 31. Re1+ Kd6 32. Rc3 Qd7 33. Qh3 e5 34. Qg3 Rc8 35. Rxc8 Qxc8 36. h4 Nf4 37. Qg5 Qe6 38. Qg3 Qg6 39. Qa3+ Ke6 40. g3 a6 41. Kh2 Nd3 42. Re2 e4 43. Qb3 Bb5 44. Rd2 Bc6 45. Qb6 Ne5 46. Kg1 Nf3+ 47. Kg2 Nxd2 48. Qd8 Qf7 49. Qg5 Qf3+ 50. Kh3 Qf5+ 51. Qxf5+ Kxf5 52. g4+ Kf4 0-1

[Event "XVII Orsha-2019 Open"]
[Site "Orsha"]
[Date "2019.01.18"]
[Round "2.28"]
[White "Ghevondyan, Arman"]
[Black "Semenov, Rinat"]
[Result "1-0"]
[ECO "A46"]
[WhiteElo "1679"]
[BlackElo "2081"]
[PlyCount "68"]
[EventDate "2019.01.18"]
[EventType "swiss"]
[EventCountry "BLR"]
[TimeControl "5400+30"]

1. Nf3 Nf6 2. g3 b5 3. Bg2 Bb7 4. d4 e6 5. O-O c5 6. a4 b4 7. c4 cxd4 8. Qxd4 Nc6 9. Qd1 Na5 10. Nbd2 Rc8 11. b3 d5 12. Ne5 Qc7 13. Bb2 Bd6 14. Nd3 dxc4 15. Bxb7 Qxb7 16. Nxc4 Nxc4 17. bxc4 Rxc4 18. Rc1 Rxc1 19. Qxc1 Be7 20. Qg5 O-O 21. Nf4 Qe4 22. e3 Rc8 23. Nh5 Qg6 24. Nxf6+ Bxf6 25. Bxf6 Qxf6 26. Qb5 Qc3 27. Rb1 a5 28. Qxa5 Rb8 29. Qa7 Qc8 30. Qe7 b3 31. Qa3 b2 32. a5 h5 33. h4 Qc2 34. Qa2 Rb3 1-0

[Event "XVII Orsha-2019 Open"]
[Site "Orsha"]
[Date "2019.01.18"]
[Round "2.29"]
[White "Ponikarovsky, Alexey"]
[Black "Volchkov, Ivan"]
[Result "1/2-1/2"]
[ECO "B34"]
[WhiteElo "2007"]
[BlackElo "1685"]
[PlyCount "48"]
[EventDate "2019.01.18"]
[EventType "swiss"]
[EventCountry "BLR"]
[TimeControl "5400+30"]

1. e4 c5 2. Nf3 Nc6 3. Nc3 g6 4. d4 cxd4 5. Nxd4 Bg7 6. Nde2 d6 7. g3 Bg4 8. Bg2 Nd4 9. O-O Nxe2+ 10. Nxe2 h5 11. h3 Bd7 12. c3 Qc8 13. Kh2 Nf6 14. f3 Qc7 15. Bg5 O-O-O 16. Qb3 Be6 17. Qa3 Qc5 18. Qxc5+ dxc5 19. Be3 b6 20. Rfe1 Bc4 21. Bf1 e5 22. b3 Bd3 23. Rad1 Bh6 24. Bxh6 Rxh6 1/2-1/2

[Event "XVII Orsha-2019 Open"]
[Site "Orsha"]
[Date "2019.01.18"]
[Round "2.30"]
[White "Naumovich, Yaroslav"]
[Black "Sokolov, Sergey"]
[Result "1/2-1/2"]
[ECO "D12"]
[WhiteElo "1915"]
[BlackElo "1756"]
[PlyCount "116"]
[EventDate "2019.01.18"]
[EventType "swiss"]
[EventCountry "BLR"]
[TimeControl "5400+30"]

1. Nf3 Nf6 2. d4 d5 3. e3 Bf5 4. Bd3 Bg6 5. c4 e6 6. Nc3 c6 7. Qc2 Nbd7 8. O-O Be7 9. e4 dxe4 10. Nxe4 O-O 11. Bf4 Nxe4 12. Bxe4 Nf6 13. Bxg6 hxg6 14. Rfd1 Re8 15. Rd3 Qa5 16. Be5 Rad8 17. a3 Bd6 18. Rad1 Qa6 19. R3d2 Rd7 20. h3 Red8 21. Ng5 c5 22. Bxf6 gxf6 23. Ne4 Be7 24. dxc5 Rxd2 25. Rxd2 Rxd2 26. Nxd2 Bxc5 27. b4 Be7 28. Qd3 Qc6 29. Nb3 b6 30. Kf1 f5 31. Nd4 Qd7 32. Ke2 a6 33. Nf3 Qc7 34. g4 fxg4 35. hxg4 Bf6 36. Qe4 Qc8 37. g5 Bg7 38. Nd2 Bb2 39. Qd3 Qc7 40. Ne4 Qe5 41. c5 bxc5 42. bxc5 Bxa3 43. c6 Be7 44. Qc4 Bd8 45. Kd3 a5 46. Nf6+ Kg7 47. Ne8+ Kf8 48. c7 Bxc7 49. Nxc7 Qxg5 50. Nb5 Qf5+ 51. Ke2 Qh5+ 52. Kd2 Qg5+ 53. Ke1 Qe5+ 54. Kf1 g5 55. Nd4 Qf4 56. Qc8+ Kg7 57. Qc3 Qf6 58. Qc4 Qf4 1/2-1/2

[Event "XVII Orsha-2019 Open"]
[Site "Orsha"]
[Date "2019.01.18"]
[Round "2.31"]
[White "Abrazevich, Yauheni"]
[Black "Gusenkova, Karina"]
[Result "1-0"]
[ECO "B12"]
[WhiteElo "1914"]
[BlackElo "1642"]
[PlyCount "95"]
[EventDate "2019.01.18"]
[EventType "swiss"]
[EventCountry "BLR"]
[TimeControl "5400+30"]

1. e4 c6 2. d4 d5 3. Nd2 g6 4. c3 Bg7 5. Ngf3 e6 6. e5 Ne7 7. Bd3 Nd7 8. O-O c5 9. Re1 Nc6 10. Bb1 cxd4 11. cxd4 O-O 12. Nb3 h6 13. Be3 Nb6 14. Qc1 Kh7 15. Bd3 a5 16. h4 Nb4 17. Bb1 Nc4 18. Bf4 a4 19. Nc5 b6 20. Nd3 Nc6 21. Bc2 Bd7 22. b3 axb3 23. axb3 N4a5 24. Bd2 Rc8 25. h5 Ne7 26. Qb1 Be8 27. Nf4 Rg8 28. hxg6+ fxg6 29. Nxe6 Qd7 30. Nxg7 Rxg7 31. Bxa5 bxa5 32. Rxa5 Nc6 33. Ra4 Qc7 34. Bd3 Ne7 35. Ra6 Qc3 36. b4 Rb8 37. b5 Qc8 38. Ra7 Qg4 39. Qb4 Nf5 40. Rea1 h5 41. Rxg7+ Kxg7 42. Ra7+ Kg8 43. Qc5 Nh4 44. Nxh4 Rc8 45. Qxd5+ Kh8 46. Nf3 Rc1+ 47. Bf1 Rc3 48. Qb7 1-0

[Event "XVII Orsha-2019 Open"]
[Site "Orsha"]
[Date "2019.01.18"]
[Round "2.32"]
[White "Dolgopyatov, Evgeniy"]
[Black "Bialiauski, Artsiom"]
[Result "1-0"]
[ECO "A47"]
[WhiteElo "1661"]
[BlackElo "1914"]
[PlyCount "151"]
[EventDate "2019.01.18"]
[EventType "swiss"]
[EventCountry "BLR"]
[TimeControl "5400+30"]

1. d4 Nf6 2. Nf3 e6 3. Bg5 c5 4. e3 Be7 5. c3 O-O 6. Nbd2 b6 7. Bd3 Bb7 8. O-O d6 9. Qc2 Nbd7 10. Rad1 Rc8 11. Qb1 Rc7 12. Rfe1 h6 13. Bxf6 Bxf6 14. e4 e5 15. dxe5 Nxe5 16. Nxe5 Bxe5 17. Nf3 Bf6 18. Bc4 Qe7 19. Qd3 Re8 20. Bd5 Bc8 21. Bb3 Rd8 22. h3 g5 23. e5 dxe5 24. Qg6+ Kf8 25. Rxd8+ Qxd8 26. Qxh6+ Bg7 27. Qxg5 Qxg5 28. Nxg5 c4 29. Bc2 f6 30. Ne4 Bf5 31. Rd1 Ke7 32. f3 b5 33. g4 Bh7 34. Kf2 a5 35. Bb1 b4 36. Nxf6 Bxf6 37. Bxh7 Rb7 38. Be4 Rb6 39. Rd2 Bh4+ 40. Ke2 b3 41. a4 Bg5 42. Rd5 Bc1 43. Rxe5+ Kd6 44. Rd5+ Ke7 45. Rc5 Bxb2 46. Rxc4 Bc1 47. h4 b2 48. Bb1 Rb3 49. g5 Ra3 50. Kd1 Rb3 51. f4 Rb8 52. h5 Rd8+ 53. Ke1 Rd2 54. h6 Rh2 55. h7 Be3 56. Bf5 Bb6 57. Rc8 Rh1+ 58. Ke2 Bd8 59. Rb8 Rh2+ 60. Kd3 Kd6 61. Kc4 Kc7 62. Rb5 Rh4 63. g6 Rxf4+ 64. Kd3 Bf6 65. Be4 Rh4 66. Rxb2 Rh3+ 67. Kc4 Rxc3+ 68. Kb5 Rc5+ 69. Kxc5 Bxb2 70. Kb5 Bc3 71. h8=Q Bxh8 72. Kxa5 Bf6 73. Kb5 Bg7 74. a5 Kd6 75. a6 Ke6 76. a7 1-0

[Event "XVII Orsha-2019 Open"]
[Site "Orsha"]
[Date "2019.01.18"]
[Round "2.33"]
[White "Vainerchuk, Barys"]
[Black "Slesareva, Miraslava"]
[Result "1-0"]
[ECO "B28"]
[WhiteElo "1907"]
[BlackElo "1626"]
[PlyCount "125"]
[EventDate "2019.01.18"]
[EventType "swiss"]
[EventCountry "BLR"]
[TimeControl "5400+30"]

1. e4 c5 2. Nf3 a6 3. c3 d5 4. exd5 Qxd5 5. d4 e6 6. Be2 Nf6 7. O-O Be7 8. c4 Qd8 9. Nc3 cxd4 10. Nxd4 O-O 11. Be3 e5 12. Nc2 Nc6 13. Nd5 Be6 14. Bb6 Qd7 15. Nce3 Bd8 16. Bc5 Re8 17. Nxf6+ Bxf6 18. Qxd7 Bxd7 19. Nd5 Bd8 20. Rfd1 Be6 21. Bf3 f5 22. b3 e4 23. Be2 Rc8 24. Nb6 Bxb6 25. Bxb6 Ne5 26. Rd2 Bd7 27. Rad1 Bc6 28. Be3 Rf8 29. Bf4 Ng6 30. Bd6 Rfe8 31. g3 Ne5 32. Bxe5 Rxe5 33. Rd6 Rce8 34. b4 e3 35. f4 R5e6 36. R6d3 g6 37. Rc3 Ba4 38. Rd4 Re4 39. Rxe4 Rxe4 40. Kf1 Bc6 41. Bd3 Re7 42. b5 axb5 43. cxb5 Bd5 44. a4 Kg7 45. a5 Kf6 46. a6 bxa6 47. bxa6 Bf3 48. Be2 Bd5 49. Bb5 Kf7 50. Bc4 Bxc4+ 51. Rxc4 e2+ 52. Ke1 Re6 53. Ra4 Re8 54. a7 Ra8 55. Kxe2 Ke6 56. Ke3 Kd5 57. Kd3 Kc5 58. Ra2 Kd5 59. Ra5+ Ke6 60. Kd4 Kd6 61. Ra6+ Kc7 62. Ke5 Kb7 63. Ra2 1-0

[Event "XVII Orsha-2019 Open"]
[Site "Orsha"]
[Date "2019.01.18"]
[Round "2.34"]
[White "Shaban, Aliaksandra"]
[Black "Gonov, Sergey"]
[Result "0-1"]
[ECO "B40"]
[WhiteElo "1482"]
[BlackElo "1905"]
[PlyCount "72"]
[EventDate "2019.01.18"]
[EventType "swiss"]
[EventCountry "BLR"]
[TimeControl "5400+30"]

1. e4 c5 2. Nf3 e6 3. d3 d5 4. Nbd2 Nc6 5. g3 f5 6. Qe2 fxe4 7. dxe4 d4 8. e5 Nh6 9. Ne4 Nf7 10. Bf4 Be7 11. Bg2 Qc7 12. O-O O-O 13. Ned2 g5 14. Nxg5 Bxg5 15. Qg4 Ncxe5 16. Bxe5 Qxe5 17. h4 h5 18. Qd1 Bxd2 19. Qxd2 Qf5 20. Rae1 Nd6 21. Kh2 e5 22. Bd5+ Kg7 23. Qa5 b6 24. Qa4 Bb7 25. Bxb7 Nxb7 26. f4 e4 27. Qc6 Rf7 28. Qxe4 Qxe4 29. Rxe4 Nd6 30. Re5 Re8 31. Rfe1 Rxe5 32. Rxe5 Nf5 33. Re2 Re7 34. Rxe7+ Nxe7 35. Kg2 Kf6 36. Kf3 Kf5 0-1

[Event "XVII Orsha-2019 Open"]
[Site "Orsha"]
[Date "2019.01.18"]
[Round "2.35"]
[White "Gabdrakipov, Kirill"]
[Black "Kulikov, Egor"]
[Result "1-0"]
[ECO "B27"]
[WhiteElo "1901"]
[BlackElo "1557"]
[PlyCount "107"]
[EventDate "2019.01.18"]
[EventType "swiss"]
[EventCountry "BLR"]
[TimeControl "5400+30"]

1. e4 c5 2. Nf3 b6 3. d4 cxd4 4. Nxd4 Bb7 5. Nc3 a6 6. f3 e6 7. Be3 d6 8. Qd2 Nd7 9. Nb3 Ngf6 10. Bf4 Nc5 11. Rd1 d5 12. exd5 Nxd5 13. Nxc5 Bxc5 14. Nxd5 Bxd5 15. c4 Bc6 16. Qc3 Qf6 17. Be5 Qh4+ 18. g3 Qe7 19. a3 f6 20. Bd4 Rd8 21. Be2 O-O 22. b4 Bxd4 23. Rxd4 e5 24. Rxd8 Rxd8 25. O-O Qb7 26. c5 bxc5 27. Qxc5 Bb5 28. Rd1 Rc8 29. Qe3 Bxe2 30. Qxe2 Qb6+ 31. Kg2 Qc6 32. Qa2+ Kf8 33. a4 Ke7 34. Rd2 Qc4 35. Qb1 g6 36. b5 axb5 37. axb5 Rb8 38. b6 Qc6 39. Qb4+ Ke6 40. Qb3+ Ke7 41. Rb2 h5 42. Qd3 f5 43. Qe3 Kf6 44. Re2 e4 45. Qd4+ Kf7 46. fxe4 Rxb6 47. Kh3 Qe6 48. Rf2 Rb5 49. Qa7+ Kf6 50. Qa8 Re5 51. Qf8+ Kg5 52. Kg2 Rxe4 53. h4+ Kg4 54. Qd8 1-0

[Event "XVII Orsha-2019 Open"]
[Site "Orsha"]
[Date "2019.01.18"]
[Round "2.36"]
[White "Karas, Andrei"]
[Black "Tsesler, Yakau"]
[Result "0-1"]
[ECO "E07"]
[WhiteElo "1422"]
[BlackElo "1895"]
[PlyCount "68"]
[EventDate "2019.01.18"]
[EventType "swiss"]
[EventCountry "BLR"]
[TimeControl "5400+30"]

1. c4 e6 2. g3 d5 3. Bg2 Nf6 4. Nf3 Nbd7 5. b3 Be7 6. O-O c6 7. Bb2 O-O 8. d3 b6 9. Nbd2 Bb7 10. Rc1 Rc8 11. d4 Re8 12. e3 a6 13. Qe2 b5 14. Rfd1 Bd6 15. Ne5 Qc7 16. Nd3 Qb8 17. c5 Bc7 18. f4 Kh8 19. Kf2 Ng8 20. h4 f6 21. Nf3 Nh6 22. Bh3 Rcd8 23. g4 Nf7 24. g5 e5 25. dxe5 fxe5 26. Bxd7 Rxd7 27. Ndxe5 Nxe5 28. Nxe5 Rde7 29. g6 h6 30. Qh5 Kg8 31. Ng4 Bxf4 32. Bd4 Bc8 33. Rc3 Rf8 34. Kg2 Rf5 0-1

[Event "XVII Orsha-2019 Open"]
[Site "Orsha"]
[Date "2019.01.18"]
[Round "2.37"]
[White "Staravoitava, Hanna"]
[Black "Masterova, Daria"]
[Result "1-0"]
[ECO "C47"]
[WhiteElo "1864"]
[BlackElo "1500"]
[PlyCount "37"]
[EventDate "2019.01.18"]
[EventType "swiss"]
[EventCountry "BLR"]
[TimeControl "5400+30"]

1. e4 e5 2. Nf3 Nf6 3. Nc3 Nc6 4. Be2 g6 5. d4 d6 6. Bg5 Bg7 7. dxe5 dxe5 8. Qxd8+ Kxd8 9. Nd5 Ne7 10. Nxf6 c6 11. Nxe5 Rf8 12. O-O-O+ Kc7 13. Bf4 b5 14. Nc4+ Kb7 15. Nd6+ Ka6 16. Nfe8 Rb8 17. Be3 Be5 18. Rd3 Rxe8 19. Ra3# 1-0

[Event "XVII Orsha-2019 Open"]
[Site "Orsha"]
[Date "2019.01.18"]
[Round "2.38"]
[White "Kolosovskaya, Olga"]
[Black "Borodulin, Pavel"]
[Result "1-0"]
[ECO "E00"]
[WhiteElo "1855"]
[BlackElo "1481"]
[PlyCount "79"]
[EventDate "2019.01.18"]
[EventType "swiss"]
[EventCountry "BLR"]
[TimeControl "5400+30"]

1. d4 Nf6 2. c4 e6 3. g3 Bb4+ 4. Bd2 Bxd2+ 5. Nxd2 O-O 6. Bg2 d6 7. e4 Nbd7 8. Ne2 c5 9. d5 e5 10. O-O b6 11. Nc3 a6 12. Qc2 Qc7 13. Rae1 Bb7 14. a4 Rab8 15. f4 Rfe8 16. Qd3 Ba8 17. Qf3 Qd8 18. Kh1 Kh8 19. Rg1 Qe7 20. h3 Bb7 21. Kh2 Bc8 22. Bf1 Bb7 23. Bd3 Ng8 24. Rg2 Rf8 25. f5 f6 26. g4 Nh6 27. Qe3 Nf7 28. Reg1 Rg8 29. Nf3 Rbe8 30. Be2 Nd8 31. Qf2 Ba8 32. Nd1 Nb7 33. Ne3 Na5 34. Nh4 Nf8 35. Bd1 Rb8 36. g5 fxg5 37. Rxg5 Rb7 38. f6 Qf7 39. fxg7+ Rxg7 40. Rf5 1-0

[Event "XVII Orsha-2019 Open"]
[Site "Orsha"]
[Date "2019.01.18"]
[Round "2.39"]
[White "Simonian, Anna"]
[Black "Loshakov, Dmitry"]
[Result "1/2-1/2"]
[ECO "B33"]
[WhiteElo "1289"]
[BlackElo "1852"]
[PlyCount "160"]
[EventDate "2019.01.18"]
[EventType "swiss"]
[EventCountry "BLR"]
[TimeControl "5400+30"]

1. e4 c5 2. Nf3 Nc6 3. d4 cxd4 4. Nxd4 Nf6 5. Nc3 e5 6. Ndb5 d6 7. Bg5 a6 8. Na3 b5 9. Nd5 Be7 10. Bxf6 Bxf6 11. c4 b4 12. Nc2 a5 13. Be2 O-O 14. O-O Bg5 15. Nce3 Be6 16. Bg4 Nd4 17. Rc1 f5 18. exf5 Bxd5 19. cxd5 Ra7 20. Rc4 Qb6 21. Qd3 Raf7 22. Kh1 Rf6 23. Rfc1 g6 24. Rc7 Qb5 25. Qxb5 Nxb5 26. Rb7 Nd4 27. Rcc7 R8f7 28. Rxf7 Rxf7 29. Rxf7 Kxf7 30. fxg6+ hxg6 31. Nc4 Ke7 32. Nxa5 Bc1 33. Nc4 Nc2 34. Kg1 Ne1 35. a3 Nd3 36. Be2 Nxb2 37. Nxb2 bxa3 38. Bc4 axb2 39. Ba2 g5 40. Kf1 Kd7 41. Ke2 Kc7 42. Kd3 Kb6 43. Kc4 Ka5 44. Kb3 Kb5 45. Kc2 Kb4 46. h3 Kc5 47. Kd3 Bf4 48. Ke4 Bd2 49. Kd3 Be1 50. f3 Kb4 51. Kc2 Bc3 52. Kd3 Bd4 53. Kc2 Kc5 54. Kd3 Bf2 55. Kc2 Kb4 56. Kd3 Ka3 57. Bb1 Kb3 58. Kd2 Kc4 59. Be4 Bc5 60. Kc2 Ba3 61. Kd2 Bb4+ 62. Kc2 Bc3 63. Kd1 Kb3 64. Bb1 Bb4 65. Ke2 Kc3 66. Ke3 Bc5+ 67. Ke2 Bg1 68. Be4 Bh2 69. Bb1 Bg3 70. Be4 Kd4 71. Kd2 Bf4+ 72. Ke2 Bc1 73. Kf2 Be3+ 74. Ke2 Bf4 75. Kf2 b1=Q 76. Bxb1 Kxd5 77. Ba2+ Kd4 78. Bb1 d5 79. Ke2 Bg3 80. Bc2 Kc3 1/2-1/2

[Event "XVII Orsha-2019 Open"]
[Site "Orsha"]
[Date "2019.01.18"]
[Round "2.40"]
[White "Ivanov, Igor"]
[Black "Vlasov, Andrey"]
[Result "1-0"]
[ECO "A13"]
[WhiteElo "2131"]
[BlackElo "2316"]
[PlyCount "48"]
[EventDate "2019.01.18"]
[EventType "swiss"]
[EventCountry "BLR"]
[TimeControl "5400+30"]

1. c4 c6 2. g3 d5 3. Qc2 Nf6 4. Bg2 e6 5. Nf3 Nbd7 6. O-O dxc4 7. Qxc4 Nb6 8. Qb3 Bd6 9. d4 O-O 10. Nc3 Re8 11. e4 Bc7 12. Rd1 h6 13. Qc2 Qe7 14. b3 Bd7 15. a4 a5 16. Ba3 Bd6 17. Bxd6 Qxd6 18. e5 Qe7 19. exf6 Qxf6 20. Ne5 Rad8 21. Ne4 Qe7 22. Qc5 Qxc5 23. dxc5 Nd5 24. Nd6 Rb8 1-0